bitfinex-derivatives/quotes_BTCF0:USTF0_20230901
["timestamp","ask_amount","ask_price","bid_price","bid_amount"]
[1693589903189,0.295328,25406.0,25405.0,0.326669]
[1693589903400,0.442983,25407.0,25405.0,0.622007]
[1693589903694,0.29532,25407.0,25405.0,0.622007]
[1693589903890,0.35485433,25407.0,25405.0,0.622007]
[1693589904091,0.26076077,25406.0,25405.0,0.622007]
[1693589904393,0.004,25406.0,25405.0,1.93595414]
[1693589904894,0.004,25408.0,25406.0,0.3]
[1693589904895,0.004,25407.0,25406.0,0.3]
[1693589905093,0.00393,25415.0,25409.0,0.3]
[1693589905391,0.147609,25416.0,25414.0,1.0369]
[1693589905392,0.00393,25416.0,25414.0,1.0369]
[1693589905592,0.00393,25415.0,25414.0,1.479751]
[1693589905987,0.151539,25416.0,25414.0,1.58912914]
[1693589906191,0.18367489,25417.0,25415.0,1.0369]
[1693589906499,0.18367489,25417.0,25416.0,0.295212]
[1693589906500,0.33127889,25417.0,25416.0,0.295212]
[1693589906692,0.00393,25417.0,25416.0,0.442818]
[1693589906884,0.15153,25417.0,25416.0,0.442818]
[1693589907086,0.00393,25416.0,25413.0,0.171]
[1693589907295,0.02393,25416.0,25413.0,0.171]
[1693589907498,0.590444,25415.0,25413.0,0.171]
[1693589907695,0.1726311,25414.0,25413.0,0.171]
[1693589907995,0.11309677,25414.0,25413.0,1.650769]
[1693589908295,0.331225,25415.0,25413.0,1.650769]
[1693589908495,0.478839,25415.0,25413.0,1.0369]
[1693589908687,0.478839,25415.0,25409.0,0.295284]
[1693589908688,1.2,25414.0,25409.0,0.295284]
[1693589908890,1.2,25414.0,25407.0,0.335657]
[1693589908891,0.00393,25411.0,25407.0,0.335657]
[1693589909196,0.00393,25409.0,25407.0,0.147657]
[1693589909394,0.17158,25409.0,25408.0,1.0369]
[1693589909602,0.44293,25410.0,25408.0,1.479856]
[1693589909788,0.44293,25410.0,25409.0,0.11337814]
[1693589909986,0.44293,25410.0,25409.0,0.004]
[1693589909987,0.614505,25410.0,25409.0,0.004]
[1693589910295,0.00793,25409.0,25407.0,0.004]
[1693589910495,0.7632351,25408.0,25407.0,0.004]
[1693589910900,0.7832351,25408.0,25406.0,0.475124]
[1693589911200,0.67013833,25408.0,25406.0,0.475124]
[1693589911593,0.610604,25408.0,25406.0,0.475124]
[1693589911791,0.611604,25408.0,25406.0,0.475124]
[1693589912096,0.11309677,25407.0,25406.0,0.1798]
[1693589912296,0.7632631,25407.0,25406.0,0.1798]
[1693589913096,0.7632631,25407.0,25406.0,0.1838]
[1693589913501,0.7632631,25407.0,25406.0,0.1798]
[1693589913801,0.7872631,25407.0,25406.0,0.1838]
[1693589914193,0.446974,25407.0,25406.0,0.331464]
[1693589914397,0.450974,25407.0,25406.0,0.331464]
[1693589914599,0.450974,25407.0,25406.0,0.58850614]
[1693589914901,0.450974,25407.0,25406.0,1.516028]
[1693589915199,0.450974,25407.0,25406.0,1.92073414]
[1693589915200,0.008,25407.0,25406.0,1.92073414]
[1693589915401,0.008,25407.0,25406.0,1.94073414]
[1693589915606,0.03189929,25412.0,25406.0,1.94073414]
[1693589915801,0.147618,25414.0,25410.0,1.0369]
[1693589916099,0.147618,25414.0,25413.0,1.332146]
[1693589916304,0.295236,25414.0,25413.0,1.332146]
[1693589916803,0.446784,25414.0,25412.0,0.147627]
[1693589916999,0.50631833,25414.0,25412.0,0.147627]
[1693589917200,0.50631833,25414.0,25413.0,0.001]
[1693589917397,0.54231833,25414.0,25413.0,0.001]
[1693589917592,0.59588077,25414.0,25413.0,0.001]
[1693589917798,0.7991031,25414.0,25413.0,0.001]
[1693589917999,0.7991031,25414.0,25413.0,0.00080453]
[1693589918202,0.8351031,25414.0,25413.0,0.00080453]
[1693589918399,2.6590331,25414.0,25413.0,0.00080453]
[1693589918599,3.6959331,25414.0,25413.0,0.00080453]
[1693589918806,3.6920031,25414.0,25413.0,0.00080453]
[1693589919105,0.00393,25409.0,25406.0,0.1798]
[1693589919301,0.7632391,25408.0,25406.0,0.1798]
[1693589919499,0.610608,25408.0,25404.0,0.147674]
[1693589919702,0.147652,25408.0,25407.0,1.0369]
[1693589919909,0.147651,25408.0,25407.0,1.479877]
[1693589920099,0.147627,25412.0,25407.0,1.73691414]
[1693589920409,0.442883,25412.0,25410.0,0.295274]
[1693589920705,0.147614,25414.0,25412.0,1.0369]
[1693589920706,0.036,25414.0,25412.0,1.0369]
[1693589921004,0.00394,25413.0,25412.0,0.442868]
[1693589921212,0.299179,25413.0,25412.0,1.58914614]
[1693589921395,0.299179,25413.0,25412.0,1.44152114]
[1693589921996,0.50633333,25413.0,25412.0,1.0369]
[1693589922301,0.00394,25413.0,25412.0,1.332148]
[1693589922496,0.155559,25413.0,25412.0,1.59315014]
[1693589922808,0.4758091,25413.0,25412.0,1.336148]
[1693589923011,0.41627477,25413.0,25412.0,1.336148]
[1693589923206,0.008,25413.0,25412.0,1.60015214]
[1693589923404,0.008,25413.0,25412.0,1.76777814]
[1693589924011,0.007,25413.0,25412.0,1.76777814]
[1693589924414,0.0199,25419.0,25416.0,0.3]
[1693589924711,1.23663891,25426.0,25416.0,0.3]
[1693589924712,0.151494,25425.0,25420.0,1.0369]
[1693589924907,0.00394,25427.0,25424.0,1.0369]
[1693589925209,0.295073,25428.0,25424.0,1.0369]
[1693589925210,0.00394,25428.0,25426.0,1.0369]
[1693589925400,0.00394,25428.0,25427.0,0.295078]
[1693589925599,0.295058,25429.0,25427.0,0.295078]
[1693589925600,0.29899,25430.0,25427.0,0.55199514]
[1693589925804,0.151455,25432.0,25429.0,1.0369]
[1693589926006,0.18235757,25434.0,25431.0,1.0369]
[1693589926007,0.00394,25434.0,25431.0,1.0369]
[1693589926208,0.1508694,25437.0,25433.0,1.0369]
[1693589926415,0.151418,25438.0,25436.0,1.0369]
[1693589926601,0.298896,25438.0,25437.0,0.25686414]
[1693589927304,0.298896,25438.0,25437.0,0.27686414]
[1693589927706,0.00394,25437.0,25436.0,1.0369]
[1693589927909,0.298908,25437.0,25436.0,1.0369]
[1693589928408,0.00394,25438.0,25436.0,1.351881]
[1693589928616,0.03994,25438.0,25437.0,0.002]
[1693589928912,0.371903,25438.0,25437.0,0.11437814]
[1693589929308,0.371903,25438.0,25436.0,1.0429]
[1693589929309,0.07594,25437.0,25436.0,1.0429]
[1693589929515,0.39091,25437.0,25436.0,1.0429]
[1693589929907,0.35491,25437.0,25436.0,1.0389]
[1693589930107,0.35097,25437.0,25436.0,1.0389]
[1693589930508,0.38697,25437.0,25436.0,1.29976814]
[1693589930704,0.518395,25437.0,25436.0,1.0429]
[1693589930907,0.63149177,25437.0,25436.0,1.0429]
[1693589931114,0.79897677,25437.0,25436.0,1.0429]
[1693589931310,0.518395,25437.0,25436.0,1.0429]
[1693589931511,0.036,25437.0,25436.0,1.355878]
[1693589931718,0.036,25437.0,25436.0,1.503367]
[1693589931911,0.036,25437.0,25436.0,1.61274514]
[1693589932114,0.036,25437.0,25436.0,1.76023414]
[1693589932318,0.2983094,25445.0,25439.0,0.3]
[1693589932615,0.298818,25445.0,25444.0,1.0369]
[1693589932920,0.446257,25445.0,25444.0,1.0369]
[1693589933124,0.00394,25442.0,25439.0,0.147469]
[1693589933414,0.55941677,25441.0,25440.0,1.0369]
[1693589933611,0.44632,25441.0,25440.0,1.0369]
[1693589934417,0.44632,25441.0,25440.0,1.14627814]
[1693589934816,0.29886,25441.0,25440.0,1.14627814]
[1693589935010,0.29492,25441.0,25440.0,1.31374414]
[1693589935207,0.14746,25441.0,25440.0,1.31374414]
[1693589935411,0.14746,25441.0,25440.0,1.29374414]
[1693589935611,0.032,25441.0,25440.0,1.46421014]
[1693589935811,0.032,25441.0,25440.0,1.61167614]
[1693589936007,0.062,25441.0,25440.0,1.61367614]
[1693589936510,0.17937296,25448.0,25444.0,0.442329]
[1693589936511,0.32679696,25448.0,25444.0,0.442329]
[1693589936822,0.32679696,25448.0,25444.0,0.02]
[1693589936823,0.294874,25445.0,25444.0,0.02]
[1693589937118,0.147427,25447.0,25444.0,1.44116414]
[1693589937323,0.147427,25447.0,25446.0,1.0369]
[1693589937618,0.14741,25450.0,25446.0,1.45119578]
[1693589937619,0.147415,25449.0,25446.0,1.45119578]
[1693589937814,0.466185,25449.0,25448.0,1.0369]
[1693589938320,0.29877,25449.0,25448.0,1.0369]
[1693589938816,0.29877,25449.0,25448.0,1.29369714]
[1693589939615,0.32177,25449.0,25448.0,1.15227814]
[1693589939812,0.69613433,25449.0,25448.0,0.006]
[1693589940020,0.69613433,25449.0,25445.0,1.2146]
[1693589940021,0.00394,25446.0,25445.0,1.2146]
[1693589940325,0.00394,25446.0,25439.0,1.0369]
[1693589940326,0.00394,25440.0,25439.0,1.0369]
[1693589940628,0.298854,25442.0,25439.0,1.499319]
[1693589940815,0.151395,25442.0,25441.0,1.0369]
[1693589941017,0.298855,25442.0,25441.0,1.29374014]
[1693589941317,0.147446,25444.0,25441.0,1.60866414]
[1693589941521,0.147446,25444.0,25443.0,1.0369]
[1693589941725,0.294893,25444.0,25443.0,1.18435]
[1693589942022,0.294893,25444.0,25443.0,1.0369]
[1693589942023,0.613726,25444.0,25443.0,1.0369]
[1693589942210,0.29496,25438.0,25437.0,0.294964]
[1693589942413,0.29496,25438.0,25437.0,1.351864]
[1693589942611,0.00394,25443.0,25437.0,1.499349]
[1693589942825,0.00394,25443.0,25442.0,1.0369]
[1693589943122,0.298843,25443.0,25442.0,1.44119014]
[1693589943422,0.41193977,25443.0,25442.0,1.331812]
[1693589943614,0.57939177,25443.0,25442.0,1.0369]
[1693589943815,0.446295,25443.0,25442.0,1.0369]
[1693589944011,0.52882933,25443.0,25442.0,1.0379]
[1693589944407,1.42373333,25443.0,25442.0,0.001]
[1693589944616,1.5368301,25443.0,25442.0,0.001]
[1693589945322,1.5628301,25443.0,25442.0,0.003]
[1693589946122,0.90329577,25443.0,25442.0,0.003]
[1693589946421,0.029,25443.0,25442.0,1.502271]
[1693589946717,0.029,25443.0,25442.0,1.61164914]
[1693589947414,0.029,25443.0,25442.0,1.59164914]
[1693589947721,0.029,25443.0,25442.0,1.73910614]
[1693589948315,0.029,25443.0,25442.0,1.59164914]
[1693589948510,0.323902,25443.0,25442.0,1.482271]
[1693589949024,0.029,25443.0,25442.0,1.59164914]
[1693589950223,0.176452,25443.0,25442.0,1.59164914]
[1693589950421,0.43700077,25443.0,25442.0,1.482271]
[1693589950615,0.60838477,25443.0,25442.0,1.0399]
[1693589951011,0.6679191,25443.0,25442.0,1.0399]
[1693589951214,0.60838477,25443.0,25442.0,1.187359]
[1693589951415,0.05293,25443.0,25442.0,1.334818]
[1693589951621,0.03293,25443.0,25442.0,1.482277]
[1693589952020,0.03293,25443.0,25442.0,1.59165514]
[1693589952534,0.475289,25443.0,25442.0,1.0399]
[1693589952913,0.03293,25443.0,25442.0,1.187358]
[1693589953112,0.029,25443.0,25442.0,1.649732]
[1693589953622,0.029,25443.0,25442.0,1.75911014]
[1693589954116,0.58837977,25443.0,25442.0,1.0399]
[1693589954311,0.73583077,25443.0,25442.0,1.0399]
[1693589954515,0.8153651,25443.0,25442.0,1.01186541]
[1693589954717,0.8153651,25443.0,25436.0,0.147487]
[1693589954718,0.00393,25432.0,25431.0,0.147515]
[1693589954937,0.00393,25427.0,25426.0,0.147548]
[1693589955227,0.26457677,25426.0,25425.0,1.31409094]
[1693589955826,0.00393,25427.0,25425.0,1.60920094]
[1693589956030,0.002,25427.0,25426.0,0.037]
[1693589956222,0.002,25427.0,25426.0,0.58901914]
[1693589956626,0.298999,25429.0,25426.0,0.55201914]
[1693589956825,0.298999,25429.0,25428.0,1.0369]
[1693589956826,0.151464,25429.0,25428.0,1.0369]
[1693589957018,0.00393,25429.0,25428.0,1.479508]
[1693589957220,0.00393,25429.0,25428.0,1.58888614]
[1693589958025,0.00393,25429.0,25428.0,1.73642414]
[1693589958237,0.02493,25429.0,25428.0,1.73842414]
[1693589958931,0.00693,25429.0,25428.0,1.77342414]
[1693589959725,0.00893,25429.0,25428.0,1.81042414]
[1693589960630,0.00893,25429.0,25428.0,1.83042414]
[1693589960631,0.005,25429.0,25428.0,1.83042414]
[1693589960828,0.03214368,25432.0,25428.0,1.83042414]
[1693589961131,0.0127,25438.0,25435.0,1.0369]
[1693589961329,0.0127,25438.0,25437.0,1.0369]
[1693589961532,0.0127,25438.0,25437.0,1.14627814]
[1693589961725,0.0127,25438.0,25437.0,1.73621414]
[1693589961930,0.0127,25438.0,25437.0,1.75621414]
[1693589962431,0.0367,25438.0,25437.0,1.75621414]
[1693589962830,0.024,25438.0,25437.0,2.3478561]
[1693589963025,0.00393,25445.0,25437.0,2.23847796]
[1693589963333,0.02393,25445.0,25444.0,1.479232]
[1693589963728,0.02393,25445.0,25444.0,1.58861014]
[1693589964331,0.171368,25445.0,25444.0,1.58861014]
[1693589964530,0.02393,25445.0,25444.0,1.58861014]
[1693589965026,0.02393,25445.0,25444.0,1.59161014]
[1693589965027,0.06093,25445.0,25444.0,1.59161014]
[1693589965429,0.06093,25445.0,25444.0,1.59461014]
[1693589965630,0.06293,25445.0,25444.0,1.59461014]
[1693589966823,0.04293,25445.0,25444.0,1.59461014]
[1693589967037,0.039,25445.0,25444.0,1.74205414]
[1693589968032,0.505244,25445.0,25444.0,0.006]
[1693589968234,0.505244,25445.0,25441.0,0.41994468]
[1693589968235,0.00393,25442.0,25441.0,0.41994468]
[1693589968436,0.466295,25442.0,25441.0,0.41994468]
[1693589968725,0.6389261,25442.0,25441.0,0.41994468]
[1693589968937,0.466295,25442.0,25441.0,0.41994468]
[1693589969434,0.00393,25439.0,25438.0,0.147477]
[1693589969627,0.00393,25439.0,25437.0,0.147487]
[1693589969628,0.298892,25438.0,25437.0,0.147487]
[1693589970026,0.00393,25435.0,25434.0,1.184402]
[1693589970234,0.00393,25435.0,25432.0,0.147511]
[1693589970235,0.00393,25433.0,25432.0,0.147511]
[1693589970429,0.00393,25432.0,25431.0,1.331931]
[1693589970734,0.318954,25432.0,25431.0,1.331931]
[1693589970929,0.151442,25432.0,25431.0,1.479449]
[1693589971130,0.41205077,25432.0,25431.0,1.479449]
[1693589971729,0.298954,25432.0,25431.0,0.442549]
[1693589971931,0.298966,25431.0,25430.0,0.147518]
[1693589972235,0.4915971,25431.0,25430.0,0.147518]
[1693589972436,0.4915971,25431.0,25427.0,0.329038]
[1693589972437,0.00393,25428.0,25427.0,0.329038]
[1693589972638,0.151466,25428.0,25427.0,0.62412]
[1693589972829,0.151466,25428.0,25427.0,0.44262]
[1693589973029,0.00393,25428.0,25427.0,0.44262]
[1693589973337,0.00393,25428.0,25427.0,0.55199814]
[1693589973936,0.11702677,25428.0,25427.0,0.44262]
[1693589974135,0.00393,25428.0,25427.0,0.44262]
[1693589974338,0.06346433,25428.0,25427.0,0.44262]
[1693589974536,0.00793,25428.0,25427.0,0.46762]
[1693589974932,0.06746433,25428.0,25427.0,0.46762]
[1693589975138,0.01093,25428.0,25427.0,0.50462]
[1693589975733,0.01093,25428.0,25427.0,1.689061]
[1693589975929,0.01093,25428.0,25427.0,1.709061]
[1693589976242,0.01093,25428.0,25427.0,2.06446518]
[1693589976735,0.01093,25428.0,25427.0,1.81843914]
[1693589977440,0.01093,25428.0,25427.0,1.79843914]
[1693589978043,0.12402677,25428.0,25427.0,1.689061]
[1693589978541,0.04296963,25428.0,25427.0,1.689061]
[1693589978743,0.04296963,25428.0,25427.0,1.79843914]
[1693589979841,0.03903963,25428.0,25427.0,1.79843914]
[1693589980137,0.03903963,25428.0,25427.0,2.04444972]
[1693589981135,0.007,25428.0,25427.0,3.10134972]
[1693589983342,0.003,25428.0,25427.0,3.07634972]
[1693589983545,0.007,25428.0,25427.0,3.10134972]
[1693589985343,0.007,25428.0,25427.0,3.08134972]
[1693589985544,0.01093,25428.0,25427.0,2.97197158]
[1693589985742,0.01093,25428.0,25427.0,1.93507158]
[1693589985940,0.41909677,25428.0,25427.0,0.60308958]
[1693589986247,0.73416677,25428.0,25427.0,0.062]
[1693589986435,1.9937011,25428.0,25427.0,0.05477382]
[1693589986634,1.9937011,25428.0,25427.0,0.05132397]
[1693589987648,0.7937011,25428.0,25427.0,0.05132397]
[1693589987949,0.7937011,25428.0,25427.0,0.19886497]
[1693589988144,0.6461661,25428.0,25427.0,0.34640797]
[1693589988448,0.6461661,25428.0,25427.0,0.19886497]
[1693589989246,0.473537,25428.0,25427.0,1.53084897]
[1693589989547,0.68060733,25428.0,25427.0,0.05132397]
[1693589989845,0.7937041,25428.0,25427.0,0.05132397]
[1693589992048,0.7937041,25428.0,25427.0,0.01826931]
[1693589992448,1.9937041,25428.0,25427.0,0.01826931]
[1693589992741,0.446625,25423.0,25422.0,1.31905372]
[1693589992937,0.6392561,25423.0,25422.0,1.31905372]
[1693589993333,0.57972177,25423.0,25422.0,1.31905372]
[1693589993534,0.31906,25423.0,25422.0,1.82207291]
[1693589993741,0.29906,25423.0,25422.0,1.82207291]
[1693589994248,0.00393,25423.0,25422.0,1.57600186]
[1693589994449,0.154495,25423.0,25422.0,1.85306766]
[1693589994635,0.154495,25423.0,25422.0,1.60700186]
[1693589995046,0.30206,25423.0,25422.0,1.8530669]
[1693589995246,0.30606,25423.0,25422.0,1.8530669]
[1693589995837,0.158495,25423.0,25422.0,1.8530669]
[1693589996041,0.01093,25423.0,25422.0,1.8530669]
[1693589996248,0.007,25423.0,25422.0,2.0206369]
[1693589997649,0.00393,25429.0,25422.0,2.0206369]
[1693589997948,0.00393,25429.0,25427.0,1.0369]
[1693589997949,0.00393,25428.0,25427.0,1.0369]
[1693589998138,0.00393,25428.0,25425.0,0.14755]
[1693589998139,0.151477,25426.0,25425.0,1.0369]
[1693589998336,0.466571,25426.0,25425.0,0.9969]
[1693589998541,0.00393,25423.0,25422.0,0.031]
[1693589998751,0.466622,25423.0,25422.0,0.031]
[1693589998944,0.29907,25422.0,25421.0,1.184473]
[1693589999151,0.41216677,25422.0,25421.0,1.43054926]
[1693589999350,0.43216677,25422.0,25421.0,1.57812626]
[1693589999552,0.02,25422.0,25421.0,1.9826584]
[1693589999754,0.00393,25423.0,25421.0,1.9826584]
[1693589999938,0.02393,25423.0,25421.0,1.627204]
[1693590000138,0.00393,25422.0,25421.0,1.33205]
[1693590000340,0.446637,25422.0,25421.0,0.24608014]
[1693590000554,0.446637,25422.0,25417.0,0.32019]
[1693590000555,0.00393,25417.0,25416.0,1.332097]
[1693590000852,0.6393521,25417.0,25416.0,1.43061581]
[1693590001748,0.6393521,25417.0,25416.0,1.31901281]
[1693590001749,0.6423521,25417.0,25416.0,1.31901281]
[1693590001949,0.56681777,25417.0,25416.0,1.0769]
[1693590002248,0.453721,25417.0,25416.0,1.224501]
[1693590002440,2.91775233,25417.0,25416.0,0.27320289]
[1693590002647,0.00393,25413.0,25412.0,0.1801]
[1693590002840,0.00393,25413.0,25411.0,0.295252]
[1693590002841,0.299178,25412.0,25411.0,0.295252]
[1693590003045,0.299178,25412.0,25411.0,0.54140898]
[1693590003249,0.41227477,25412.0,25411.0,0.54140898]
[1693590003452,0.4718091,25412.0,25411.0,0.295252]
[1693590004054,0.41227477,25412.0,25411.0,0.295252]
[1693590004352,0.41627477,25412.0,25411.0,0.298252]
[1693590004858,0.4958091,25412.0,25411.0,0.298252]
[1693590005051,0.4798091,25412.0,25411.0,0.298252]
[1693590005251,0.4998091,25412.0,25411.0,0.298252]
[1693590005755,0.6474331,25412.0,25411.0,0.150625]
[1693590005955,0.6474331,25412.0,25411.0,0.003]
[1693590006952,0.03193,25412.0,25411.0,1.63042]
[1693590007153,0.01193,25412.0,25411.0,1.63042]
[1693590007356,0.008,25412.0,25411.0,1.63042]
[1693590007650,0.008,25412.0,25411.0,2.05979814]
[1693590008355,0.004,25412.0,25411.0,2.05979814]
[1693590008558,0.008,25412.0,25411.0,2.05979814]
[1693590009447,0.00393,25419.0,25412.0,1.0369]
[1693590009642,0.00393,25420.0,25418.0,1.0369]
[1693590009858,0.00393,25420.0,25419.0,1.73661414]
[1693590010057,0.00393,25421.0,25419.0,1.73661414]
[1693590010354,0.00393,25422.0,25420.0,1.14627814]
[1693590010555,0.00393,25422.0,25421.0,1.479616]
[1693590010753,0.147562,25423.0,25421.0,1.58899414]
[1693590010955,0.299044,25424.0,25421.0,1.479616]
[1693590010956,0.151485,25424.0,25421.0,1.479616]
[1693590011156,0.171485,25424.0,25421.0,1.627188]
[1693590011344,0.00393,25426.0,25423.0,1.0369]
[1693590011551,0.46792401,25428.0,25425.0,1.0369]
[1693590011750,0.46792401,25428.0,25427.0,1.0369]
[1693590012061,0.46792401,25428.0,25427.0,1.627048]
[1693590012259,0.46399401,25428.0,25427.0,1.627048]
[1693590012449,0.34879401,25428.0,25427.0,2.79332614]
[1693590012657,0.00393,25435.0,25427.0,2.79332614]
[1693590012856,0.02393,25435.0,25433.0,1.0369]
[1693590013052,0.171421,25435.0,25434.0,0.294994]
[1693590013561,0.171421,25435.0,25434.0,0.40437214]
[1693590013748,0.18311368,25435.0,25434.0,0.40437214]
[1693590014061,0.05962268,25435.0,25434.0,0.55187014]
[1693590014261,0.03962268,25435.0,25434.0,0.55187014]
[1693590014457,0.04262268,25435.0,25434.0,0.55687014]
[1693590014657,0.04162268,25435.0,25434.0,0.56587014]
[1693590014958,0.50409868,25435.0,25434.0,0.014]
[1693590015554,0.67672978,25435.0,25434.0,0.014]
[1693590015957,0.61719545,25435.0,25434.0,0.161498]
[1693590016267,0.61719545,25435.0,25434.0,1.640892]
[1693590016268,0.03769268,25435.0,25434.0,1.640892]
[1693590016455,0.03769268,25435.0,25434.0,1.493394]
[1693590016761,0.03669268,25435.0,25434.0,1.74927014]
[1693590016963,0.03469268,25435.0,25434.0,1.76627014]
[1693590017163,0.03469268,25435.0,25434.0,1.91376814]
[1693590017359,0.003,25435.0,25434.0,1.91376814]
[1693590017564,0.004,25435.0,25434.0,1.91876814]
[1693590017767,0.008,25435.0,25434.0,1.93276814]
[1693590019064,0.03076402,25436.0,25435.0,1.3369]
[1693590019363,1.17856111,25445.0,25439.0,0.589872]
[1693590019364,0.15529204,25444.0,25439.0,0.589872]
[1693590019552,0.02393,25444.0,25443.0,1.0369]
[1693590019751,0.47017004,25444.0,25443.0,1.0369]
[1693590019966,0.00393,25442.0,25441.0,0.294908]
[1693590020169,0.43192877,25442.0,25441.0,0.294908]
[1693590020361,0.4914631,25442.0,25441.0,0.294908]
[1693590020557,0.43192877,25442.0,25441.0,0.294908]
[1693590021153,0.02393,25442.0,25441.0,0.442364]
[1693590021357,0.00393,25442.0,25441.0,0.442364]
[1693590021558,0.01293,25442.0,25441.0,1.481264]
[1693590021763,0.16038,25442.0,25441.0,0.25883014]
[1693590022065,0.42092677,25442.0,25441.0,0.29691]
[1693590022461,0.42092677,25442.0,25441.0,0.29791]
[1693590022462,0.42692677,25442.0,25441.0,0.29791]
[1693590022868,0.31383,25442.0,25441.0,0.40728814]
[1693590023268,0.31383,25442.0,25441.0,0.29791]
[1693590023269,0.42692677,25442.0,25441.0,0.29791]
[1693590024459,0.31383,25442.0,25441.0,0.29791]
[1693590024662,0.16638,25442.0,25441.0,0.40728814]
[1693590024962,0.01893,25442.0,25441.0,0.55474614]
[1693590025262,0.01893,25442.0,25441.0,1.59164614]
[1693590025866,0.015,25442.0,25441.0,1.73910414]
[1693590026573,0.015,25442.0,25441.0,1.75910414]
[1693590026870,0.015,25442.0,25441.0,1.73910414]
[1693590027065,0.015,25442.0,25441.0,1.75910414]
[1693590031173,0.03148022,25445.0,25444.0,0.3]
[1693590031363,0.00393,25449.0,25444.0,2.20347814]
[1693590031564,0.00393,25449.0,25448.0,0.589668]
[1693590031764,0.00393,25449.0,25448.0,0.69904614]
[1693590032074,0.03489383,25449.0,25448.0,0.69904614]
[1693590032268,0.00393,25449.0,25448.0,0.69904614]
[1693590032967,0.00428326,25449.0,25448.0,0.69904614]
[1693590033275,0.04028326,25449.0,25448.0,0.70104614]
[1693590033470,0.03635326,25449.0,25448.0,1.02104614]
[1693590033666,0.03116524,25452.0,25451.0,0.8896]
[1693590033868,0.00393,25455.0,25454.0,0.889532]
[1693590034066,0.00393,25455.0,25454.0,1.926432]
[1693590034276,0.06415275,25458.0,25454.0,2.03581014]
[1693590034580,0.02393,25458.0,25457.0,1.626368]
[1693590034768,0.02393,25458.0,25457.0,1.57842843]
[1693590034970,0.02426065,25458.0,25457.0,1.57842843]
[1693590035969,0.02426065,25458.0,25457.0,1.43106143]
[1693590035970,0.17161965,25458.0,25457.0,1.43106143]
[1693590036170,0.18861965,25458.0,25457.0,1.32468329]
[1693590036378,0.06126065,25458.0,25457.0,1.32468329]
[1693590036565,0.06126065,25458.0,25457.0,1.43406143]
[1693590036772,0.50333765,25458.0,25457.0,0.88258229]
[1693590037079,0.50333765,25458.0,25457.0,1.18031329]
[1693590037080,0.65243442,25458.0,25457.0,1.18031329]
[1693590037379,0.50507542,25458.0,25457.0,1.18031329]
[1693590037677,0.09726065,25458.0,25457.0,1.47504729]
[1693590038067,0.09726065,25458.0,25457.0,1.43705843]
[1693590038269,0.07726065,25458.0,25457.0,1.43705843]
[1693590038879,0.07726065,25458.0,25457.0,1.58442543]
[1693590041473,0.07333065,25458.0,25457.0,1.58442543]
[1693590041783,0.00393,25459.0,25457.0,1.58442543]
[1693590041784,0.00393,25459.0,25458.0,1.0369]
[1693590041979,0.00393,25459.0,25458.0,1.73571814]
[1693590042976,0.01993,25459.0,25458.0,1.73871814]
[1693590043171,0.351638,25459.0,25458.0,1.59435814]
[1693590043385,0.00393,25454.0,25453.0,0.294775]
[1693590043684,0.00393,25453.0,25452.0,0.147392]
[1693590043877,0.00393,25453.0,25452.0,1.331687]
[1693590044181,0.55919377,25453.0,25452.0,1.184292]
[1693590044384,0.57919377,25453.0,25452.0,0.147392]
[1693590044886,0.57919377,25453.0,25452.0,0.149392]
[1693590044887,0.63903534,25453.0,25452.0,0.149392]
[1693590045181,0.05023724,25453.0,25452.0,1.481085]
[1693590045374,0.06523724,25453.0,25452.0,1.482085]
[1693590045582,0.06523724,25453.0,25452.0,1.187295]
[1693590045776,0.56693857,25453.0,25452.0,1.0399]
[1693590046087,0.82742434,25453.0,25452.0,1.0399]
[1693590046984,0.76789001,25453.0,25452.0,1.0399]
[1693590047184,0.06523724,25453.0,25452.0,1.33469]
[1693590047480,0.06523724,25453.0,25452.0,1.482085]
[1693590047481,0.04523724,25453.0,25452.0,1.482085]
[1693590047673,0.04523724,25453.0,25452.0,1.59146314]
[1693590049379,0.04130724,25453.0,25452.0,1.73885814]
[1693590050690,0.04523724,25453.0,25452.0,1.73885814]
[1693590051781,0.19262524,25453.0,25452.0,1.73885814]
[1693590052090,0.04523724,25453.0,25452.0,1.73885814]
[1693590052390,0.19262524,25453.0,25452.0,1.59146314]
[1693590053681,0.47311001,25453.0,25452.0,1.0399]
[1693590053887,0.76788501,25453.0,25452.0,0.003]
[1693590054087,0.76788501,25453.0,25447.0,0.147417]
[1693590054088,0.00393,25448.0,25447.0,0.147417]
[1693590054283,0.55927477,25448.0,25447.0,0.147417]
[1693590054980,0.55957951,25448.0,25447.0,0.147417]
[1693590055191,0.00393,25447.0,25446.0,0.29485]
[1693590055377,0.57929577,25447.0,25446.0,1.0369]
[1693590055585,0.57929577,25447.0,25444.0,0.294877]
[1693590055586,0.00393,25445.0,25444.0,0.294877]
[1693590055783,0.00393,25445.0,25442.0,0.147448]
[1693590055784,0.00393,25443.0,25442.0,0.147448]
[1693590055977,0.318822,25443.0,25442.0,1.331801]
[1693590056182,0.00393,25443.0,25442.0,1.479252]
[1693590056681,0.00393,25443.0,25442.0,1.58863014]
[1693590056982,0.00427631,25443.0,25442.0,1.58863014]
[1693590057179,0.00727631,25443.0,25442.0,1.62163014]
[1693590058287,0.00534631,25443.0,25442.0,1.80608114]
[1693590058588,0.00234631,25443.0,25442.0,1.77308114]
[1693590058791,0.00634631,25443.0,25442.0,1.80608114]
[1693590058980,0.00634631,25443.0,25442.0,1.76908114]
[1693590059183,0.00234631,25443.0,25442.0,1.77308114]
[1693590059487,0.004,25443.0,25442.0,1.700633]
[1693590059691,0.004,25443.0,25442.0,1.66256014]
[1693590059885,0.003,25443.0,25442.0,1.553182]
[1693590060088,0.003,25443.0,25442.0,1.66256014]
[1693590060290,0.003,25443.0,25442.0,1.81001214]
[1693590060993,0.005,25443.0,25442.0,1.81001214]
[1693590062192,0.005,25443.0,25442.0,1.66256014]